bitfinex/quotes_SOLUSD_20220104
["timestamp","ask_amount","ask_price","bid_price","bid_amount"]
[1641306868814,3.02247737,172.47,172.39,9.16]
[1641306872719,3.02247737,172.47,172.39,10.58669368]
[1641306873318,3.02247737,172.47,172.39,9.16]
[1641306873519,3.28247737,172.47,172.39,8.4]
[1641306874020,3.02247737,172.47,172.39,8.66]
[1641306874218,3.02247737,172.47,172.39,9.16]
[1641306875722,13.58403,172.48,172.4,1.42669368]
[1641306875922,13.58403,172.48,172.41,8.4]
[1641306876121,13.58403,172.48,172.41,17.97086919]
[1641306876321,13.58403,172.48,172.41,20.15756287]
[1641306878225,13.58403,172.48,172.41,10.58669368]
[1641306878425,13.58403,172.48,172.41,9.16]
[1641306878826,13.58403,172.48,172.41,8.9]
[1641306880229,13.58403,172.48,172.41,9.16]
[1641306883655,13.58403,172.48,172.42,1.42669368]
[1641306883951,13.58403,172.48,172.43,8.4]
[1641306884356,13.58403,172.48,172.44,1.42669368]
[1641306884555,13.58403,172.48,172.44,1.68669368]
[1641306884756,13.58403,172.48,172.44,2.18669368]
[1641306885357,13.58403,172.48,172.45,8.4]
[1641306885557,13.58403,172.48,172.45,8.66]
[1641306885761,13.58403,172.48,172.45,9.16]
[1641306887057,13.58403,172.48,172.45,10.58669368]
[1641306888457,6.06,172.47,172.45,10.58669368]
[1641306890161,6.06,172.47,172.45,10.32669368]
[1641306890361,6.06,172.47,172.45,8.9]
[1641306891364,13.58403,172.48,172.45,8.4]
[1641306891565,13.58403,172.48,172.45,9.16]
[1641306891863,13.58403,172.48,172.45,8.66]
[1641306892263,6.06,172.47,172.45,8.66]
[1641306892465,6.06,172.47,172.41,1.42669368]
[1641306892665,13.041,172.47,172.38,9.82669368]
[1641306892865,13.541,172.47,172.38,1.42669368]
[1641306893067,13.801,172.47,172.36,8.4]
[1641306893268,36.4187,172.47,172.36,8.4]
[1641306893466,35.9187,172.47,172.36,11.16409368]
[1641306893868,35.9187,172.47,172.36,11.66409368]
[1641306894066,1.3019,172.46,172.36,11.66409368]
[1641306894567,1.3019,172.46,172.36,21.23496287]
[1641306894767,1.3019,172.46,172.36,31.09480372]
[1641306895569,1.3019,172.46,172.36,31.35480372]
[1641306896471,22.6177,172.47,172.36,37.18593013]
[1641306896671,13.58403,172.48,172.36,37.18593013]
[1641306896871,14.08403,172.48,172.36,37.18593013]
[1641306898073,13.58403,172.48,172.37,22.8008]
[1641306898276,13.58403,172.48,172.38,8.4]
[1641306898475,13.58403,172.48,172.38,10.58669368]
[1641306898873,13.58403,172.48,172.39,1.42669368]
[1641306899075,13.58403,172.48,172.4,8.4]
[1641306899373,13.58403,172.48,172.4,8.9]
[1641306899576,13.58403,172.48,172.4,10.58669368]
[1641306901775,13.58403,172.48,172.4,8.9]
[1641306902177,13.84403,172.48,172.4,8.9]
[1641306902378,13.84403,172.48,172.4,8.4]
[1641306902878,13.84403,172.48,172.4,8.9]
[1641306903077,13.84403,172.48,172.4,9.16]
[1641306905282,13.58403,172.48,172.4,9.16]
[1641306905486,13.58403,172.48,172.4,10.58669368]
[1641306908212,13.58403,172.48,172.4,30.01740372]
[1641306909814,13.58403,172.48,172.4,20.15756287]
[1641306913420,13.58403,172.48,172.4,30.01740372]
[1641306914620,13.58403,172.48,172.4,31.27560372]
[1641306916627,13.58403,172.48,172.4,45.80233013]
[1641306917729,13.58403,172.48,172.41,8.6952]
[1641306917956,13.58403,172.48,172.42,8.4]
[1641306918131,13.58403,172.48,172.42,9.82669368]
[1641306918330,13.58403,172.48,172.42,18.73086919]
[1641306918532,13.58403,172.48,172.43,1.42669368]
[1641306918731,13.58403,172.48,172.44,8.4]
[1641306918933,13.58403,172.48,172.44,8.9]
[1641306919131,13.58403,172.48,172.44,10.58669368]
[1641306922636,2.30166094,172.47,172.44,10.32669368]
[1641306922837,6.06,172.46,172.44,10.32669368]
[1641306923036,2.30166094,172.47,172.44,10.32669368]
[1641306923335,2.30166094,172.47,172.44,8.9]
[1641306923736,2.30166094,172.47,172.44,8.4]
[1641306923934,6.06,172.46,172.44,8.4]
[1641306924139,6.06,172.46,172.44,8.9]
[1641306924337,6.06,172.46,172.44,10.32669368]
[1641306924538,6.06,172.46,172.44,10.58669368]
[1641306924737,13.60403,172.48,172.44,10.58669368]
[1641306925338,13.58403,172.48,172.44,10.58669368]
[1641306925739,13.58403,172.48,172.44,10.32669368]
[1641306925940,13.58403,172.48,172.44,8.9]
[1641306927041,13.58403,172.48,172.44,9.16]
[1641306927441,13.58403,172.48,172.44,10.58669368]
[1641306927843,13.58403,172.48,172.44,9.16]
[1641306930344,13.58403,172.48,172.44,8.66]
[1641306930545,13.58403,172.48,172.41,9.82669368]
[1641306930746,13.58403,172.48,172.41,10.32669368]
[1641306931850,13.58403,172.48,172.41,10.58669368]
[1641306932250,13.58403,172.48,172.41,30.01740372]
[1641306933277,13.58403,172.48,172.41,35.84853013]
[1641306933574,13.58403,172.48,172.41,35.58853013]
[1641306934778,13.58403,172.48,172.41,35.84853013]
[1641306935276,13.58403,172.48,172.41,35.58853013]
[1641306935476,13.58403,172.48,172.41,25.72868928]
[1641306936776,13.58403,172.48,172.41,25.98868928]
[1641306937379,13.58403,172.48,172.41,25.72868928]
[1641306938579,13.58403,172.48,172.41,25.98868928]
[1641306938782,1.2515,172.56,172.51,16.05135721]
[1641306938981,1.61793811,172.57,172.52,8.4]
[1641306939181,1.61793811,172.57,172.52,9.82669368]
[1641306939381,1.61793811,172.57,172.52,10.58669368]
[1641306939586,1.61793811,172.57,172.52,20.15756287]
[1641306939882,27.31475261,172.61,172.53,1.42669368]
[1641306940083,0.02,172.55,172.53,8.66]
[1641306940285,0.02,172.55,172.53,8.9]
[1641306940686,0.02,172.55,172.53,8.4]
[1641306941286,28.07475261,172.61,172.53,8.4]
[1641306941889,78.0,172.6,172.53,0.0001]
[1641306942092,78.26,172.6,172.51,16.05135721]
[1641306942489,0.76,172.6,172.51,16.05135721]
[1641306942889,0.5,172.6,172.51,16.05135721]
[1641306943090,28.07475261,172.61,172.51,16.05135721]
[1641306943390,29.69269072,172.61,172.51,16.05135721]
[1641306943890,30.74339072,172.61,172.51,16.05135721]
[1641306944291,30.24339072,172.61,172.51,16.05135721]
[1641306944494,30.74339072,172.61,172.51,16.05135721]
[1641306945292,29.12545261,172.61,172.51,16.05135721]
[1641306945492,29.38545261,172.61,172.51,16.05135721]
[1641306945693,29.12545261,172.61,172.51,16.05135721]
[1641306947200,29.38545261,172.61,172.51,16.05135721]
[1641306947597,30.74339072,172.61,172.51,16.05135721]
[1641306948395,29.12545261,172.61,172.51,16.05135721]
[1641306948795,29.38545261,172.61,172.51,16.05135721]
[1641306949097,29.38545261,172.61,172.51,16.31135721]
[1641306949296,29.38545261,172.61,172.51,16.05135721]
[1641306950297,37.78545261,172.61,172.51,16.05135721]
[1641306950896,37.78545261,172.61,172.51,0.00135721]
[1641306951098,22.828,172.6,172.51,0.00135721]
[1641306951297,2.19636184,172.58,172.51,0.00135721]
[1641306951498,24.0161,172.57,172.51,0.00135721]
[1641306951922,24.7761,172.57,172.51,0.00135721]
[1641306952122,2.76534609,172.55,172.51,0.00135721]
[1641306952321,3.26534609,172.55,172.51,0.00135721]
[1641306952524,3.52534609,172.55,172.51,0.00135721]
[1641306953023,1.2275,172.54,172.51,0.00135721]
[1641306953222,6.06,172.53,172.51,0.00135721]
[1641306953422,2.32433487,172.52,172.51,0.00135721]
[1641306953824,2.82433487,172.52,172.51,0.00135721]
[1641306955125,3.08433487,172.52,172.51,0.00135721]
[1641306955924,41.08433487,172.52,172.51,0.00135721]
[1641306956425,4.43253487,172.52,172.51,0.00135721]
[1641306958426,28.06773487,172.52,172.51,0.00135721]
[1641306959226,12.11455644,172.53,172.51,0.00135721]
[1641306959431,6.06,172.53,172.51,0.00135721]
[1641306959634,6.06,172.53,172.51,8.40135721]
[1641306960539,2.75805206,172.56,172.51,8.40135721]
[1641306961136,3.01805206,172.56,172.51,8.40135721]
[1641306961335,3.51805206,172.56,172.51,8.40135721]
[1641306961535,3.51805206,172.56,172.51,0.00135721]
[1641306966140,3.25805206,172.56,172.51,0.00135721]
[1641306967541,0.5,172.56,172.51,0.00135721]
[1641306967744,0.26,172.56,172.51,0.00135721]
[1641306967940,2.038,172.58,172.51,0.00135721]
[1641306968541,2.38692353,172.57,172.51,0.00135721]
[1641306968945,3.14692353,172.57,172.51,0.00135721]
[1641306974353,2.88692353,172.57,172.51,0.00135721]
[1641306974551,2.38692353,172.57,172.51,0.00135721]
[1641306974753,2.88692353,172.57,172.51,0.00135721]
[1641306975855,3.14692353,172.57,172.51,0.00135721]
[1641306976253,23.2201,172.56,172.51,0.00135721]
[1641306976454,23.9801,172.56,172.51,0.00135721]
[1641306977254,25.3313,172.56,172.51,0.00135721]
[1641306979657,25.0713,172.56,172.51,0.00135721]
[1641306979859,24.5713,172.56,172.51,0.00135721]
[1641306980961,24.8313,172.56,172.51,0.00135721]
[1641306986992,0.02,172.59,172.51,0.00135721]
[1641306987395,0.02,172.59,172.51,22.56615721]
[1641306987595,0.02,172.59,172.51,22.82615721]
[1641306987793,0.02,172.59,172.51,23.32615721]
[1641306987993,0.02,172.59,172.52,1.2607]
[1641306988394,0.02,172.59,172.52,2.0207]
[1641306989193,3.43265599,172.61,172.52,2.0207]
[1641306989493,3.43265599,172.61,172.52,3.44739368]
[1641306989494,3.69265599,172.61,172.52,3.44739368]
[1641306989693,3.43265599,172.61,172.52,3.44739368]
[1641306989893,0.02,172.64,172.52,11.84739368]
[1641306990095,0.02,172.64,172.53,23.0172]
[1641306990493,0.02,172.64,172.53,25.20389368]
[1641306990996,0.02,172.64,172.54,1.2746]
[1641306991194,26.21977373,172.65,172.54,1.2746]
[1641306991394,26.71977373,172.65,172.54,2.0346]
[1641306991794,24.41,172.64,172.54,2.0346]
[1641306991993,24.67,172.64,172.54,2.0346]
[1641306992193,25.17,172.64,172.54,2.0346]
[1641306992396,25.17,172.64,172.54,1.7746]
[1641306994096,25.17,172.64,172.54,2.0346]
[1641306994297,24.41,172.64,172.54,2.0346]
[1641306995900,73.3375,172.71,172.55,8.4]
[1641306996104,24.6216,172.7,172.55,31.8006]
[1641306996301,25.1216,172.7,172.55,32.3006]
[1641306996702,24.78448882,172.68,172.55,32.3006]
[1641306996902,24.2697,172.67,172.56,1.3299]
[1641306997102,24.2697,172.67,172.56,1.5899]
[1641306997302,24.7697,172.67,172.56,1.5899]
[1641306997502,26.3674,172.67,172.56,1.5899]
[1641306997703,26.3674,172.67,172.56,2.0899]
[1641306999106,25.8674,172.67,172.56,2.0899]
[1641306999307,2.1985335,172.68,172.56,10.4899]
[1641306999505,2.1985335,172.68,172.57,22.5904]
[1641306999704,2.1985335,172.68,172.58,8.4]
[1641306999905,2.1985335,172.68,172.58,8.9]
[1641307000106,2.1985335,172.68,172.58,9.16]
[1641307000603,2.1985335,172.68,172.59,1.3408]
[1641307000805,2.1985335,172.68,172.6,8.4]
[1641307001004,2.4585335,172.68,172.6,8.66]
[1641307001208,2.4585335,172.68,172.6,9.16]
[1641307001806,0.26,172.68,172.6,9.16]
[1641307002007,23.7864,172.7,172.6,9.16]
[1641307002206,0.02,172.73,172.6,9.16]
[1641307002409,0.02,172.73,172.66,0.32082444]
[1641307002607,0.02,172.73,172.66,8.72082444]
[1641307003012,0.02,172.73,172.66,9.48082444]
[1641307003207,2.88726916,172.77,172.66,9.48082444]
[1641307003406,0.42746896,172.77,172.67,1.3165]
[1641307003607,0.92746896,172.77,172.67,1.5765]
[1641307003809,0.42746896,172.77,172.67,2.0765]
[1641307004006,0.42746896,172.77,172.67,10.4765]
[1641307007412,2.80751024,172.76,172.67,10.4765]
[1641307007813,3.56751024,172.76,172.67,10.4765]
[1641307008216,3.56751024,172.76,172.67,10.2165]
[1641307008613,3.56751024,172.76,172.67,9.7165]
[1641307009613,3.56751024,172.76,172.67,10.2165]
[1641307009814,3.56751024,172.76,172.67,9.7165]
[1641307010214,3.56751024,172.76,172.67,10.2165]
[1641307010414,3.56751024,172.76,172.67,8.4]
[1641307012447,3.30751024,172.76,172.67,8.4]
[1641307012645,3.30751024,172.76,172.64,1.3533]
[1641307012847,3.30751024,172.76,172.64,2.1133]
[1641307013849,3.56751024,172.76,172.64,2.1133]
[1641307014051,1.3549,172.75,172.64,2.1133]
[1641307014450,1.8549,172.75,172.64,2.1133]
[1641307014650,2.1149,172.75,172.64,2.1133]
[1641307015450,1.8549,172.75,172.64,2.1133]
[1641307016654,0.5,172.75,172.64,1.6133]
[1641307016852,3.30751024,172.76,172.64,2.1133]
[1641307017851,3.56751024,172.76,172.64,1.6133]
[1641307018452,1.2605,172.75,172.64,2.1133]
[1641307018853,1.5205,172.75,172.64,3.53999368]
[1641307019953,2.0205,172.75,172.64,2.1133]
[1641307020153,2.0205,172.75,172.64,1.8533]
[1641307020355,8.1955,172.75,172.64,1.3533]
[1641307020653,8.4,172.74,172.6,1.42669368]
[1641307020853,8.4,172.74,172.57,8.84864696]
[1641307020854,2.97478471,172.73,172.56,1.2457]
[1641307021056,23.34207583,172.71,172.56,1.2457]
[1641307021257,2.78057262,172.69,172.56,1.2457]
[1641307021462,3.28057262,172.69,172.56,1.2457]
[1641307021655,3.54057262,172.69,172.56,1.2457]
[1641307022060,1.2963,172.68,172.56,2.0057]
[1641307022258,1.2963,172.68,172.56,1.7457]
[1641307022459,1.2963,172.68,172.56,2.0057]
[1641307022658,1.2963,172.68,172.56,11.83239368]
[1641307023962,1.5563,172.68,172.56,11.83239368]
[1641307025563,0.26,172.68,172.56,11.83239368]
[1641307025762,2.78057262,172.69,172.56,11.83239368]
[1641307028967,3.04057262,172.69,172.56,10.4057]
[1641307030268,3.04057262,172.69,172.56,19.2522]
[1641307031399,4.36217262,172.69,172.56,19.2522]
[1641307033902,4.36217262,172.69,172.56,9.6457]
[1641307034102,4.86217262,172.69,172.52,1.2599]
[1641307034303,31.9458,172.68,172.52,10.9281]
[1641307034505,32.2058,172.68,172.52,9.6682]
[1641307034705,32.7058,172.68,172.52,9.6682]
[1641307035205,32.7058,172.68,172.52,10.1682]
[1641307035705,2.57134641,172.66,172.52,10.1682]
[1641307035903,3.07134641,172.66,172.52,10.1682]
[1641307036103,3.33134641,172.66,172.52,10.1682]
[1641307036503,29.84371548,172.64,172.52,10.1682]
[1641307036705,2.78922784,172.63,172.52,10.1682]
[1641307037105,3.04922784,172.63,172.52,10.1682]
[1641307037905,4.35342784,172.63,172.52,10.1682]
[1641307038707,4.85342784,172.63,172.52,8.9]
[1641307038907,4.85342784,172.63,172.52,8.4]
[1641307040607,4.85342784,172.63,172.52,8.66]
[1641307041511,4.85342784,172.63,172.52,8.4]
[1641307042111,13.25342784,172.63,172.51,0.00135721]
[1641307042313,24.3063,172.62,172.51,0.00135721]
[1641307042512,24.5663,172.62,172.51,0.00135721]
[1641307042711,25.0663,172.62,172.51,0.00135721]
[1641307043612,2.7707755,172.6,172.51,0.00135721]
[1641307043812,27.3839755,172.6,172.51,0.00135721]
[1641307044010,28.1439755,172.6,172.51,0.00135721]
[1641307044413,1.2659,172.59,172.51,0.00135721]
[1641307044815,2.0259,172.59,172.51,0.00135721]
[1641307048314,1.7659,172.59,172.51,0.00135721]
[1641307049616,2.0259,172.59,172.51,0.00135721]
[1641307052019,1.5259,172.59,172.51,0.00135721]
[1641307053419,2.0259,172.59,172.51,0.00135721]
[1641307055120,28.25629113,172.59,172.51,0.00135721]
[1641307055722,2.17811375,172.57,172.51,0.00135721]
[1641307055921,2.67811375,172.57,172.51,0.00135721]
[1641307056120,2.93811375,172.57,172.51,0.00135721]
[1641307056520,4.25631375,172.57,172.51,0.00135721]
[1641307057121,24.8328,172.56,172.51,0.00135721]
[1641307057524,25.5928,172.56,172.51,0.00135721]
[1641307058323,1.3517,172.55,172.51,0.00135721]
[1641307058524,2.34238931,172.54,172.51,0.00135721]
[1641307058927,6.06,172.53,172.51,0.00135721]
[1641307059324,6.82,172.53,172.51,0.00135721]
[1641307059523,103.854,172.52,172.51,0.00135721]
[1641307059925,104.614,172.52,172.51,0.00135721]
[1641307060825,26.614,172.52,172.51,0.00135721]
[1641307063527,26.354,172.52,172.51,0.00135721]
[1641307064930,26.614,172.52,172.51,0.00135721]
[1641307070134,26.354,172.52,172.51,0.00135721]
[1641307070536,84.754,172.52,172.51,0.00135721]
[1641307070736,86.18069368,172.52,172.51,0.00135721]
[1641307071136,36.18069368,172.52,172.51,0.00135721]
[1641307071536,35.014,172.52,172.51,0.00135721]
[1641307072339,36.44069368,172.52,172.51,0.00135721]
[1641307073542,84.14439368,172.52,172.51,0.00135721]
[1641307073741,45.14439368,172.52,172.51,0.00135721]
[1641307074140,51.20112204,172.52,172.51,0.00135721]
[1641307074341,42.49742204,172.52,172.51,0.00135721]
[1641307074741,51.20102204,172.52,172.51,0.00135721]
[1641307077842,42.49742204,172.52,172.51,0.00135721]
[1641307078447,117.53932204,172.52,172.51,0.00135721]
[1641307081547,116.77932204,172.52,172.51,0.00135721]
[1641307081750,115.35262836,172.52,172.51,0.00135721]
[1641307082348,109.2959,172.52,172.51,0.00135721]
[1641307082948,109.7959,172.52,172.51,0.00135721]
[1641307083550,110.0559,172.52,172.51,0.00135721]
[1641307087377,111.48259368,172.52,172.51,0.00135721]
[1641307092485,120.18639368,172.52,172.51,0.00135721]
[1641307093683,121.8199099,172.52,172.51,0.00135721]
[1641307094290,112.8561099,172.52,172.51,0.00135721]
[1641307095285,111.22259368,172.52,172.51,0.00135721]
[1641307096888,111.48259368,172.52,172.51,0.00135721]
[1641307098691,110.98259368,172.52,172.51,0.00135721]
[1641307099891,111.48259368,172.52,172.51,0.00135721]
[1641307102297,111.22259368,172.52,172.51,0.00135721]
[1641307103099,109.7959,172.52,172.51,0.00135721]
[1641307107128,108.4638,172.52,172.51,0.00135721]
[1641307108028,108.7238,172.52,172.51,0.00135721]
[1641307109631,108.4638,172.52,172.51,0.00135721]
[1641307110632,8.9,172.52,172.51,0.00135721]
[1641307111933,0.76,172.52,172.51,0.00135721]
[1641307112734,25.3617,172.52,172.51,0.00135721]
[1641307117441,35.18839368,172.52,172.51,0.00135721]
[1641307119445,33.7617,172.52,172.51,0.00135721]
[1641307124950,33.5017,172.52,172.51,0.00135721]
[1641307125251,24.6017,172.52,172.51,0.00135721]
[1641307126350,25.1017,172.52,172.51,0.00135721]
[1641307126551,0.5,172.52,172.51,0.00135721]
[1641307127755,6.06,172.53,172.51,0.00135721]
[1641307128555,6.32,172.53,172.51,0.00135721]
[1641307129152,6.82,172.53,172.51,0.00135721]
[1641307131781,6.32,172.53,172.51,0.00135721]
[1641307132857,6.82,172.53,172.51,0.00135721]
[1641307136970,15.22,172.53,172.51,0.00135721]
[1641307137568,79.342,172.52,172.51,0.00135721]
[1641307137968,2.102,172.52,172.51,0.00135721]
[1641307138169,26.9716,172.52,172.51,0.00135721]
[1641307143197,25.6296,172.52,172.51,0.00135721]
[1641307143615,0.5,172.52,172.51,0.00135721]
[1641307144201,80.9593,172.6,172.51,0.00135721]
[1641307144400,104.856,172.6,172.51,0.00135721]
[1641307145101,2.51669605,172.59,172.51,0.00135721]
[1641307145500,3.01669605,172.59,172.51,0.00135721]
[1641307146798,2.51669605,172.59,172.51,0.00135721]
[1641307148001,3.01669605,172.59,172.51,0.00135721]
[1641307149102,3.27669605,172.59,172.51,0.00135721]
[1641307150103,3.01669605,172.59,172.51,0.00135721]
[1641307150603,2.51669605,172.59,172.51,0.00135721]
[1641307150804,3.01669605,172.59,172.51,0.00135721]
[1641307151603,3.27669605,172.59,172.51,0.00135721]
[1641307153303,2.77669605,172.59,172.51,0.00135721]
[1641307154506,3.27669605,172.59,172.51,0.00135721]
[1641307158119,4.60289605,172.59,172.51,0.00135721]
[1641307158315,29.49852674,172.58,172.51,0.00135721]
[1641307158515,29.75852674,172.58,172.51,0.00135721]
[1641307158714,30.25852674,172.58,172.51,0.00135721]
[1641307159215,0.76,172.58,172.51,0.00135721]
[1641307159417,0.26,172.58,172.51,0.00135721]
[1641307159618,3.27669605,172.59,172.51,0.00135721]
[1641307160021,1.3048,172.58,172.51,0.00135721]
[1641307160524,2.0648,172.58,172.51,0.00135721]
[1641307161219,24.4971,172.58,172.51,0.00135721]
[1641307162618,24.7571,172.58,172.51,0.00135721]
[1641307164824,24.4971,172.58,172.51,0.00135721]
[1641307165025,1.3048,172.58,172.51,0.00135721]
[1641307165226,2.51669605,172.59,172.51,0.00135721]
[1641307165428,3.01669605,172.59,172.51,0.00135721]
[1641307167947,3.27669605,172.59,172.51,0.00135721]
[1641307169246,1.3367,172.58,172.51,0.00135721]
[1641307169448,1.8367,172.58,172.51,0.00135721]
[1641307169649,2.0967,172.58,172.51,0.00135721]
[1641307173455,0.5,172.58,172.51,0.00135721]
[1641307173852,3.01669605,172.59,172.51,0.00135721]
[1641307175555,29.5055681,172.59,172.48,0.98715721]
[1641307175754,29.5055681,172.59,172.48,0.72715721]
[1641307175957,29.7655681,172.59,172.47,25.6185]
[1641307176356,29.7655681,172.59,172.47,27.04519368]
[1641307176555,29.7655681,172.59,172.48,1.2874]
[1641307176957,29.7655681,172.59,172.48,3.47409368]
[1641307177155,29.7655681,172.59,172.49,24.6182]
[1641307177957,29.7655681,172.59,172.49,25.1182]
[1641307178358,29.7655681,172.59,172.5,1.2884]
[1641307180360,24.2262,172.6,172.5,1.2884]
[1641307180567,1.3493,172.65,172.51,1.42669368]
[1641307180764,26.0415,172.64,172.52,8.4]
[1641307180963,1.63351622,172.66,172.52,8.66]
[1641307181166,1.63351622,172.66,172.53,26.08699368]
[1641307181362,2.58134431,172.65,172.53,34.98699368]
[1641307181564,2.58134431,172.65,172.54,1.42669368]
[1641307181963,2.58134431,172.65,172.54,2.18669368]
[1641307182564,2.84134431,172.65,172.54,2.18669368]
[1641307184567,2.84134431,172.65,172.54,0.76]
[1641307184965,2.84134431,172.65,172.53,33.8203]
[1641307185364,2.84134431,172.65,172.53,35.24699368]
[1641307189268,2.84134431,172.65,172.53,34.98699368]
[1641307189469,3.34134431,172.65,172.53,33.5603]
[1641307189668,3.34134431,172.65,172.53,31.8184]
[1641307190675,3.08134431,172.65,172.53,31.8184]
[1641307190873,3.08134431,172.65,172.53,32.0784]
[1641307191573,3.08134431,172.65,172.54,1.3542]
[1641307191972,3.34134431,172.65,172.54,1.3542]
[1641307192176,2.58134431,172.65,172.54,1.3542]
[1641307192374,2.58134431,172.65,172.55,8.4]
[1641307192874,2.58134431,172.65,172.55,9.16]
[1641307193878,2.84134431,172.65,172.55,9.16]
[1641307194575,2.58134431,172.65,172.55,9.16]
[1641307195476,3.08134431,172.65,172.55,9.16]
[1641307195778,3.08134431,172.65,172.55,8.66]
[1641307196477,3.34134431,172.65,172.55,8.66]
[1641307196675,2.58134431,172.65,172.55,9.16]
[1641307197976,2.84134431,172.65,172.55,9.16]
[1641307198383,2.84134431,172.65,172.55,10.58669368]
[1641307199085,2.84134431,172.65,172.55,9.16]
[1641307199506,2.84134431,172.65,172.54,1.3542]
[1641307199707,3.34134431,172.65,172.54,1.3542]
[1641307199908,3.34134431,172.65,172.53,23.4184]
[1641307200510,23.2251,172.64,172.53,23.4184]
[1641307200908,23.7251,172.64,172.53,23.4184]
[1641307201109,23.9851,172.64,172.53,23.6784]
[1641307201309,23.9851,172.64,172.53,23.4184]
[1641307201712,25.2727,172.64,172.53,23.4184]
[1641307202611,25.2727,172.64,172.53,23.6784]
[1641307204113,0.76,172.64,172.53,23.6784]
[1641307204316,0.5,172.66,172.54,8.4]
[1641307204515,100.63909721,172.67,172.55,24.6622]
[1641307204714,101.13909721,172.67,172.56,8.4]
[1641307204914,101.13909721,172.67,172.56,10.154]
[1641307205114,2.51293091,172.66,172.56,10.414]
[1641307205315,2.51293091,172.66,172.56,11.84069368]
[1641307205515,2.77293091,172.66,172.56,11.84069368]
[1641307205716,2.51293091,172.66,172.56,11.84069368]
[1641307208519,2.77293091,172.66,172.56,11.84069368]
[1641307209121,2.77293091,172.66,172.56,11.58069368]
[1641307210125,0.26,172.66,172.56,11.58069368]
[1641307210325,79.8271,172.7,172.57,24.3558]
[1641307210554,78.4722,172.7,172.58,8.4]
[1641307210726,77.9722,172.7,172.59,24.0893]
[1641307210926,77.9722,172.7,172.59,32.9893]
[1641307211126,77.9722,172.7,172.59,34.67599368]
[1641307211328,33.95780531,172.69,172.59,34.67599368]
[1641307212034,33.95780531,172.69,172.6,1.42669368]
[1641307212427,2.14606607,172.69,172.6,2.18669368]
[1641307212927,2.40606607,172.69,172.6,2.18669368]
[1641307213527,2.40606607,172.69,172.61,1.42669368]
[1641307213927,2.40606607,172.69,172.61,2.18669368]
[1641307215533,2.40606607,172.69,172.61,0.76]
[1641307215831,2.40606607,172.69,172.6,1.7339]
[1641307216031,2.40606607,172.69,172.6,1.4939]
[1641307216232,2.40606607,172.69,172.6,1.9939]
[1641307217034,2.40606607,172.69,172.6,3.42059368]
[1641307218635,2.14606607,172.69,172.6,3.42059368]
[1641307220035,2.40606607,172.69,172.6,11.82059368]
[1641307221538,2.40606607,172.69,172.6,9.6339]
[1641307221737,2.90606607,172.69,172.6,8.4]
[1641307224041,2.40606607,172.69,172.6,9.82669368]
[1641307224241,2.14606607,172.69,172.6,10.08669368]
[1641307224443,2.14606607,172.69,172.6,10.58669368]
[1641307229578,28.79374101,172.72,172.6,10.58669368]
[1641307229781,28.79374101,172.72,172.61,23.5722]
[1641307230082,28.79374101,172.72,172.62,8.4]
[1641307230282,28.79374101,172.72,172.62,9.82669368]
[1641307230479,28.79374101,172.72,172.63,1.42669368]
[1641307230879,31.2050759,172.72,172.63,34.93829368]
[1641307231082,31.4650759,172.72,172.63,35.19829368]
[1641307231282,31.4650759,172.72,172.64,1.42669368]
[1641307231482,31.4650759,172.72,172.64,1.68669368]
[1641307231683,31.4650759,172.72,172.64,2.18669368]
[1641307238986,2.67133489,172.72,172.64,2.18669368]
[1641307239187,2.67133489,172.72,172.65,1.42669368]
[1641307239387,2.67133489,172.72,172.65,1.92669368]
[1641307239588,2.67133489,172.72,172.65,2.18669368]
[1641307239996,132.98231251,172.76,172.65,2.18669368]
[1641307240193,133.48231251,172.76,172.65,2.18669368]
[1641307240600,133.48231251,172.76,172.66,1.42669368]
[1641307240789,102.9421,172.76,172.66,1.42669368]
[1641307240992,105.4291763,172.76,172.66,2.18669368]
[1641307241191,105.4291763,172.76,172.66,8.66769368]
[1641307241392,105.4291763,172.76,172.67,1.42669368]
[1641307241591,105.4291763,172.76,172.67,1.68669368]
[1641307241992,26.43303235,172.75,172.67,1.68669368]
[1641307242197,26.43303235,172.75,172.67,2.18669368]